bitfinex-derivatives/quotes_ETHF0:USTF0_20260305
["timestamp","ask_amount","ask_price","bid_price","bid_amount"]
[1772693326539,5.63184235,2127.4,2126.7,0.55569689]
[1772693326739,0.50374621,2127.8,2126.7,0.55569689]
[1772693327141,0.50374621,2127.7,2126.7,0.55569689]
[1772693327444,5.61824066,2127.8,2126.7,0.55569689]
[1772693327640,6.12198687,2127.8,2126.7,0.55569689]
[1772693327842,0.50374621,2127.6,2126.7,0.55569689]
[1772693328046,0.50374621,2127.5,2126.7,0.55569689]
[1772693328242,0.50374621,2127.5,2126.2,0.55569689]
[1772693328448,0.50374621,2127.3,2126.2,0.55569689]
[1772693328644,0.50384795,2127.2,2126.2,0.55569689]
[1772693329546,0.50384795,2127.2,2126.0,0.55724684]
[1772693329746,0.56744941,2126.7,2126.0,0.55724684]
[1772693330451,0.56744941,2126.7,2125.9,0.0035423]
[1772693330655,0.56744941,2126.5,2125.9,0.0035423]
[1772693331350,0.56744941,2126.3,2125.6,0.55724684]
[1772693331556,0.56744941,2126.1,2125.1,0.55724684]
[1772693331857,0.56744941,2125.9,2125.1,0.55724684]
[1772693332253,0.57090288,2125.9,2125.1,0.56269483]
[1772693332651,0.57090288,2125.9,2125.1,0.00544799]
[1772693333650,0.57090288,2125.9,2124.6,0.55724684]
[1772693334654,0.57090288,2125.9,2124.6,0.56089761]
[1772693335560,0.57090288,2125.9,2124.8,0.55724684]
[1772693339458,0.00345347,2125.9,2125.0,0.55724684]
[1772693339654,0.00345347,2125.9,2125.2,0.55724684]
[1772693340354,0.57090288,2125.9,2125.4,0.55724684]
[1772693340561,0.57090288,2125.9,2124.9,0.55724684]
[1772693343462,0.57090288,2125.9,2125.1,0.55724684]
[1772693344562,0.57090288,2125.9,2125.3,0.55724684]
[1772693344863,0.00345347,2125.9,2125.3,0.55724684]
[1772693348059,0.56744941,2126.2,2125.5,0.55724684]
[1772693348265,0.56744941,2126.5,2125.5,0.55724684]
[1772693348562,6.18457145,2126.4,2125.5,0.55724684]
[1772693348763,0.56744941,2126.4,2125.5,0.55724684]
[1772693349065,0.57191205,2126.4,2125.5,0.55724684]
[1772693352268,0.00446264,2126.4,2125.5,0.55724684]
[1772693352573,0.57191205,2126.4,2125.7,0.55724684]
[1772693354770,0.56744941,2126.3,2125.7,0.55724684]
[1772693356277,0.56744941,2126.3,2125.5,0.55724684]
[1772693356873,0.56744941,2126.1,2125.3,0.55724684]
[1772693357073,0.56744941,2125.9,2125.3,0.55724684]
[1772693360681,0.55337136,2126.1,2125.3,0.55724684]
[1772693360980,0.55337136,2125.9,2125.3,0.55724684]
[1772693361280,0.55337136,2126.2,2125.3,0.55724684]
[1772693361480,0.55337136,2126.0,2125.3,0.55724684]
[1772693363285,5.58769275,2125.9,2125.3,0.55724684]
[1772693363881,0.55337136,2125.8,2124.7,0.54320084]
[1772693364384,0.55337136,2125.8,2124.9,0.54320084]
[1772693366381,0.55337136,2125.8,2125.1,0.54320084]
[1772693369083,0.55227714,2125.6,2125.1,0.54320084]
[1772693372688,0.55227714,2125.4,2124.6,0.00365077]
[1772693372885,0.55227714,2125.4,2124.6,0.56876736]
[1772693376593,0.55227714,2125.2,2124.6,0.00365077]
[1772693377693,0.55227714,2125.0,2124.6,0.56876736]
[1772693377893,0.55227714,2125.4,2124.6,0.56876736]
[1772693378088,6.13835356,2125.3,2124.6,0.56876736]
[1772693378291,0.55227714,2125.3,2124.6,0.56876736]
[1772693380093,3.93194542,2126.7,2125.8,0.56511659]
[1772693380294,0.47144623,2126.7,2126.0,0.56511659]
[1772693380893,4.42817484,2126.7,2126.0,0.56511659]
[1772693381093,0.47030347,2127.6,2126.2,0.56511659]
[1772693381294,4.24130347,2127.4,2126.2,0.56983155]
[1772693381497,0.47030347,2127.3,2126.2,0.56983155]
[1772693381797,0.47030347,2127.2,2126.2,0.56983155]
[1772693382400,0.47030347,2127.0,2126.2,0.56983155]
[1772693383002,4.89847831,2127.0,2126.2,0.56983155]
[1772693383295,0.45198431,2126.9,2126.2,0.56983155]
[1772693383501,0.45198431,2126.8,2126.2,0.56983155]
[1772693384097,0.45198431,2126.7,2126.2,0.00471496]
[1772693384498,0.45198431,2126.4,2126.0,0.56511659]
[1772693385004,0.45210221,2127.5,2126.0,0.56511659]
[1772693385202,0.00570627,2127.6,2126.0,0.56511659]
[1772693385203,0.45210221,2126.9,2126.0,0.56511659]
[1772693385602,0.45210221,2126.9,2126.0,0.57074946]
[1772693386397,0.45210221,2127.5,2126.3,0.56511659]
[1772693386704,0.45187869,2127.5,2126.5,0.56511659]
[1772693387101,0.45187869,2127.5,2126.9,0.56511659]
[1772693387299,0.00570627,2127.6,2126.9,0.56511659]
[1772693389099,0.45748084,2127.6,2126.9,0.56511659]
[1772693389297,0.45177457,2127.5,2126.9,0.56511659]
[1772693389898,0.45178662,2127.3,2126.4,0.56907118]
[1772693391005,0.45958166,2127.1,2126.4,0.56907118]
[1772693391504,0.45958166,2127.5,2126.4,0.56907118]
[1772693391805,0.45958166,2127.5,2126.6,0.56907118]
[1772693392211,0.45958166,2127.5,2126.1,0.56907118]
[1772693392402,0.45958166,2127.3,2126.3,0.56907118]
[1772693393007,0.4561865,2127.1,2126.3,0.56907118]
[1772693393204,0.4561865,2127.1,2126.5,0.56907118]
[1772693393508,0.4561865,2127.5,2126.5,0.56907118]
[1772693393803,0.00570627,2127.6,2126.7,0.56907118]
[1772693394906,0.45563938,2128.4,2126.9,0.56907118]
[1772693395604,2.62488869,2128.9,2126.9,0.56907118]
[1772693395605,4.88381422,2128.2,2126.9,0.56907118]
[1772693395804,0.45563938,2128.2,2126.9,0.56907118]
[1772693396003,4.42817484,2128.1,2126.9,0.56907118]
[1772693396308,0.45563938,2128.0,2127.1,0.56907118]
[1772693397307,4.42817484,2127.8,2127.1,0.56907118]
[1772693397704,0.45563938,2128.0,2127.1,0.56907118]
[1772693397900,0.00500853,2128.2,2127.3,0.56907118]
[1772693397901,0.46495713,2128.2,2127.3,0.56907118]
[1772693398404,4.42817484,2128.0,2127.3,0.56907118]
[1772693398807,4.42817484,2127.9,2127.3,0.56907118]
[1772693399004,0.46495713,2128.2,2127.3,0.56907118]
[1772693399203,4.42817484,2128.0,2127.3,0.56907118]
[1772693399408,4.42817484,2128.0,2127.4,0.23499]
[1772693399609,0.46495713,2128.2,2127.5,0.56907118]
[1772693399910,4.42817484,2128.1,2127.5,0.57299467]
[1772693400213,4.42817484,2128.0,2127.5,0.57299467]
[1772693400411,0.00500853,2128.2,2127.5,0.57299467]
[1772693400707,0.00500853,2128.2,2127.7,0.56907118]
[1772693401107,0.46451921,2128.9,2127.9,0.56907118]
[1772693401504,0.46451921,2128.6,2127.9,0.56907118]
[1772693401704,0.46451921,2128.6,2127.6,0.56907118]
[1772693401905,0.46451921,2128.6,2127.5,0.00392349]
[1772693402113,0.46451921,2128.1,2127.5,0.00392349]
[1772693402609,3.18216167,2127.7,2127.5,0.00392349]
[1772693402804,0.46680714,2128.2,2127.5,0.57299467]
[1772693403505,0.46680714,2127.8,2127.5,0.00392349]
[1772693403700,0.46680714,2127.7,2127.3,0.56907118]
[1772693404003,2.70385167,2128.1,2127.3,0.56907118]
[1772693404206,0.46680714,2128.0,2127.3,0.56907118]
[1772693404401,0.46680714,2128.4,2127.3,0.56907118]
[1772693404711,0.46680714,2128.4,2127.5,0.56907118]
[1772693405102,2.70385167,2128.1,2127.5,0.56907118]
[1772693405309,0.46130877,2128.1,2127.5,0.56907118]
[1772693405605,2.70385167,2127.9,2127.5,0.56907118]
[1772693405809,0.46130877,2128.1,2127.5,0.56907118]
[1772693406005,3.16516044,2127.7,2127.3,0.57505447]
[1772693406211,0.46130877,2127.7,2127.3,0.57505447]
[1772693406410,0.46130877,2128.3,2127.3,0.57505447]
[1772693406611,0.46130877,2128.0,2127.3,0.57505447]
[1772693406911,0.46130877,2128.0,2127.4,0.56907118]
[1772693407113,2.70385167,2127.9,2127.4,0.56907118]
[1772693407411,0.47090796,2128.1,2127.4,0.56907118]
[1772693407711,0.47090796,2127.8,2127.4,0.56907118]
[1772693408112,2.70385167,2127.7,2127.4,0.56907118]
[1772693408505,2.70385167,2127.6,2127.4,0.56907118]
[1772693408811,0.47090796,2127.9,2127.1,0.21573539]
[1772693409615,0.59210554,2127.7,2127.1,0.21573539]
[1772693409910,0.59210554,2127.7,2127.1,0.2196751]
[1772693410114,0.59210554,2127.5,2127.1,0.2196751]
[1772693410518,0.59210554,2128.3,2127.1,0.2196751]
[1772693410715,0.59210554,2128.0,2127.1,0.2196751]
[1772693411012,0.59210554,2128.4,2127.4,0.22489846]
[1772693411221,0.59210554,2128.4,2127.6,0.22489846]
[1772693411415,0.59210554,2128.2,2127.7,0.45985846]
[1772693411614,0.59210554,2128.2,2127.8,0.22489846]
[1772693411813,2.70385167,2128.1,2127.8,0.22489846]
[1772693412015,0.59210554,2128.2,2127.8,0.22489846]
[1772693412317,2.70385167,2128.0,2127.8,0.22489846]
[1772693412712,0.99271449,2128.0,2127.8,0.2190059]
[1772693412924,0.59683174,2128.6,2128.0,0.2190059]
[1772693413212,0.10639554,2128.8,2128.2,0.56907118]
[1772693413420,7.36676996,2130.0,2128.4,0.56907118]
[1772693413421,0.59210554,2129.0,2128.4,0.56907118]
[1772693413607,0.59210554,2129.2,2128.4,0.56907118]
[1772693414312,0.59708634,2129.2,2128.4,0.56907118]
[1772693414509,0.08176259,2130.2,2128.6,0.56907118]
[1772693414814,0.59210554,2130.0,2128.6,0.56907118]
[1772693415223,0.59210554,2129.9,2128.7,0.23484]
[1772693415420,0.59210554,2129.9,2128.8,0.56907118]
[1772693415611,0.59608552,2129.9,2128.8,0.57403488]
[1772693416019,0.59210554,2129.8,2128.8,0.57403488]
[1772693416324,0.59210554,2130.6,2129.0,0.56907118]
[1772693416521,0.59210554,2130.6,2129.2,0.56907118]
[1772693416719,0.59210554,2130.4,2129.2,0.56907118]
[1772693417316,0.59210554,2130.1,2129.2,0.56907118]
[1772693417915,0.59210554,2130.0,2129.2,0.56907118]
[1772693418320,0.59210554,2130.2,2129.2,0.56907118]
[1772693418518,0.59210554,2130.2,2129.3,0.23478]
[1772693418822,0.59210554,2130.2,2129.4,0.56907118]
[1772693419223,0.00397483,2130.4,2129.4,0.56907118]
[1772693419417,0.00397483,2130.4,2129.6,0.53785078]
[1772693419620,0.00397483,2130.4,2129.8,0.53785078]
[1772693420325,2.70659772,2131.6,2130.0,0.53785078]
[1772693420624,0.56708901,2131.4,2130.0,0.53785078]
[1772693420818,0.56708901,2131.2,2129.6,0.53785078]
[1772693421023,0.56708901,2130.9,2129.6,0.53785078]
[1772693421215,0.5704803,2130.9,2129.6,0.53785078]
[1772693421419,0.56708901,2130.5,2129.6,0.53785078]
[1772693421918,0.56708901,2130.4,2129.6,0.53785078]
[1772693422125,0.56708901,2130.4,2129.4,0.53785078]
[1772693422514,0.00339129,2130.9,2129.2,0.53785078]
[1772693422715,0.56708901,2130.8,2129.2,0.53785078]
[1772693422919,0.56708901,2130.7,2129.4,0.53785078]
[1772693423122,0.56708901,2130.7,2129.7,0.23473]
[1772693423325,0.56708901,2130.7,2129.8,0.53785078]
[1772693423525,0.56708901,2130.6,2129.8,0.53785078]
[1772693424020,1.16417984,2130.6,2129.8,0.53785078]
[1772693424220,0.56708901,2130.6,2129.8,0.53785078]
[1772693424525,1.16417984,2130.6,2129.8,0.53785078]
[1772693424728,0.56708901,2130.8,2129.8,0.53785078]
[1772693425130,0.56708901,2130.6,2129.8,0.53785078]
[1772693425321,0.56708901,2130.6,2129.3,0.53785078]
[1772693425520,0.56708901,2130.4,2128.9,0.53785078]
[1772693425922,0.56708901,2130.4,2128.8,0.0049637]
[1772693426120,12.63288869,2130.5,2128.8,0.0049637]
[1772693426121,0.56708901,2129.7,2128.8,0.0049637]
[1772693426623,0.56708901,2129.4,2128.8,0.54281448]
[1772693426826,0.57313639,2129.4,2128.8,0.0049637]
[1772693427221,0.57313639,2129.4,2128.2,0.2349]
[1772693427222,0.58553123,2129.2,2128.4,0.56789473]
[1772693428029,0.58553123,2129.0,2128.0,0.56789473]
[1772693428325,0.58553123,2129.0,2128.0,0.57217154]
[1772693429329,0.58553123,2128.8,2128.0,0.57217154]
[1772693430329,0.00604738,2129.4,2128.0,0.57217154]
[1772693430330,0.58553123,2129.3,2128.0,0.57217154]
[1772693431132,0.58553123,2129.3,2128.3,0.56789473]
[1772693432328,0.00604738,2129.4,2128.5,0.56789473]
[1772693432633,0.00604738,2129.4,2128.7,0.56789473]
[1772693432824,0.58553123,2129.7,2128.7,0.56789473]
[1772693433029,0.58553123,2130.5,2128.7,0.56789473]
[1772693433228,0.58553123,2130.3,2128.7,0.56789473]
[1772693433625,0.58553123,2130.1,2128.7,0.56789473]
[1772693433832,0.59014162,2130.1,2128.7,0.56789473]
[1772693434231,0.58553123,2129.6,2128.7,0.56789473]
[1772693434737,0.58553123,2130.0,2128.7,0.56789473]
[1772693434936,0.58553123,2129.8,2128.7,0.56789473]
[1772693435435,0.58553123,2129.5,2128.7,0.56789473]
[1772693435837,0.58553123,2129.3,2128.7,0.56789473]
[1772693436032,0.58553123,2130.0,2128.7,0.56789473]
[1772693436434,0.58553123,2129.5,2128.7,0.56789473]
[1772693437238,0.58553123,2129.5,2128.4,0.56789473]
[1772693437437,0.58553123,2129.2,2128.4,0.56789473]
[1772693437930,0.58553123,2129.0,2128.2,0.56789473]
[1772693438327,0.58553123,2128.8,2128.2,0.56789473]
[1772693438531,0.58553123,2128.8,2128.1,0.56789473]
[1772693439037,0.59709083,2128.7,2128.1,0.56789473]
[1772693439235,0.59709083,2128.7,2128.2,0.56789473]
[1772693439627,0.59709083,2128.6,2128.2,0.56789473]
[1772693439829,0.58553123,2129.0,2128.2,0.56789473]
[1772693440235,0.58553123,2129.0,2128.3,0.56789473]
[1772693440440,0.58553123,2129.2,2128.3,0.56789473]
[1772693440834,0.59126888,2129.2,2128.3,0.56789473]
[1772693441035,0.59126888,2129.2,2128.2,3.86273036]
[1772693441036,0.58553123,2128.9,2128.2,3.86273036]
[1772693441337,1.01083903,2128.8,2128.1,0.56789473]
[1772693441534,0.4253078,2128.7,2128.1,0.56789473]
[1772693442135,0.58553123,2129.0,2128.1,0.56789473]
[1772693442537,0.58553123,2128.8,2128.1,0.56789473]
[1772693443038,0.58553123,2128.4,2127.8,0.56789473]
[1772693443740,1.18262206,2128.3,2127.8,0.56789473]
[1772693443935,0.58553123,2128.3,2127.6,0.56789473]
[1772693444136,0.58553123,2128.3,2127.6,0.57282634]
[1772693444442,0.58553123,2128.5,2127.7,0.56789473]
[1772693444733,0.58553123,2128.8,2128.0,0.80281473]
[1772693444934,0.58553123,2128.8,2127.7,0.56789473]
[1772693445141,0.58553123,2128.8,2128.1,0.56789473]
[1772693445637,0.59709083,2128.7,2128.1,0.56789473]
[1772693446028,0.59709083,2128.6,2128.1,0.56789473]
[1772693446333,0.58553123,2128.8,2128.1,0.56789473]
[1772693446930,0.59709083,2128.7,2128.1,0.56789473]
[1772693447136,0.58553123,2128.7,2128.0,0.23492]
[1772693447438,0.59709083,2128.5,2128.1,0.56789473]
[1772693447743,0.58553123,2128.4,2128.0,0.80281473]
[1772693447931,0.58553123,2128.4,2127.7,0.56789473]
[1772693448538,0.59709083,2128.2,2127.7,0.56789473]
[1772693448739,1.18092454,2128.2,2127.7,0.56789473]
[1772693448940,0.59709083,2128.1,2127.7,0.56789473]
[1772693449131,0.59709083,2128.1,2127.6,0.00493161]
[1772693449132,0.58383371,2128.8,2127.9,0.59057889]
[1772693449532,0.58383371,2128.7,2128.1,0.59057889]
[1772693450439,0.58383371,2128.7,2128.0,0.23492]
[1772693451542,0.58383371,2128.7,2128.0,0.82549889]
[1772693451944,0.58383371,2129.1,2128.3,0.59057889]
[1772693452144,0.58383371,2128.9,2128.3,0.59057889]
[1772693453249,0.58383371,2128.9,2128.2,0.2349]
[1772693453543,0.58383371,2128.9,2127.8,0.59057889]
[1772693453745,0.58383371,2128.9,2128.0,0.59057889]
[1772693454045,0.58383371,2128.9,2128.2,0.59057889]
[1772693455244,0.00573765,2129.2,2128.2,0.59057889]
[1772693455245,0.58383371,2129.1,2128.2,0.59057889]
[1772693455743,0.58383371,2129.1,2128.4,0.59057889]
[1772693456138,6.338,2129.7,2128.8,0.59057889]
[1772693456139,0.58383371,2129.7,2128.8,0.59057889]
[1772693456340,0.58383371,2130.0,2129.2,0.59057889]
[1772693456541,0.58383371,2130.3,2129.6,0.59057889]
[1772693457145,0.58891411,2130.3,2129.8,0.59057889]
[1772693457447,0.58383371,2130.8,2129.8,0.59057889]
[1772693457638,0.58383371,2130.8,2130.0,0.59057889]
[1772693458347,0.58383371,2130.8,2129.9,0.23471]
[1772693458537,0.58818152,2130.8,2129.9,0.23471]
[1772693458743,0.58818152,2130.8,2130.1,0.82526889]
[1772693459245,0.58818152,2130.8,2129.7,0.59057889]
[1772693459648,0.58818152,2130.8,2129.6,0.00393394]
[1772693460745,0.58818152,2130.8,2129.6,0.59451283]
[1772693460945,0.58818152,2130.8,2129.8,0.59057889]
[1772693461443,0.58818152,2130.8,2130.0,0.59057889]
[1772693461845,0.00434781,2130.8,2130.2,0.59057889]
[1772693462041,0.58818152,2130.8,2129.7,0.59057889]
[1772693463445,0.58818152,2130.8,2129.6,1.89093394]
[1772693463446,0.58818152,2130.8,2129.9,0.59057889]
[1772693463846,0.58818152,2130.8,2129.6,1.89093394]
[1772693463847,0.58818152,2130.8,2130.1,0.59057889]
[1772693465751,0.58818152,2130.8,2129.9,0.59057889]
[1772693466249,0.58818152,2130.8,2129.7,0.59057889]
[1772693467045,0.58818152,2130.8,2129.6,0.59451283]
[1772693467850,0.58818152,2130.8,2129.6,0.00393394]
[1772693468154,0.58818152,2130.8,2129.2,0.59057889]
[1772693469148,0.58818152,2130.8,2129.2,0.59436822]
[1772693469553,0.58818152,2130.8,2129.4,0.59057889]
[1772693470355,0.58818152,2130.8,2129.6,0.59057889]
[1772693470555,0.58818152,2130.8,2129.8,0.59057889]
[1772693471859,0.58818152,2130.8,2129.7,0.82530889]
[1772693472052,3.758,2130.7,2129.7,0.82530889]
[1772693472254,0.58383371,2130.6,2129.5,0.59057889]
[1772693473752,0.58383371,2130.6,2129.4,1.887]
[1772693473952,0.58383371,2130.6,2129.4,2.47757889]
[1772693474349,0.58383371,2130.6,2129.4,0.59057889]
[1772693475450,0.58383371,2130.6,2129.2,0.82915822]
[1772693476256,0.58383371,2130.6,2129.3,0.59057889]
[1772693477459,0.58383371,2130.6,2129.2,0.00378933]
[1772693477460,0.58383371,2130.5,2129.2,0.00378933]
[1772693477654,0.58383371,2130.4,2129.2,0.00378933]
[1772693477854,0.58383371,2130.3,2129.2,0.00378933]
[1772693478460,0.58383371,2130.3,2129.2,0.59436822]
[1772693478656,0.58383371,2130.3,2129.4,0.569306]
[1772693478861,0.55304569,2130.7,2129.4,0.569306]
[1772693479061,0.55304569,2130.7,2129.6,0.569306]
[1772693480249,0.55304569,2130.7,2129.7,0.23473]
[1772693480451,0.55304569,2130.7,2129.8,0.569306]
[1772693480761,0.00434781,2130.8,2130.2,0.569306]
[1772693481462,0.5573935,2130.8,2130.1,0.23469]
[1772693482157,0.55304569,2130.7,2130.0,0.569306]
[1772693482358,0.55304569,2130.7,2129.7,0.569306]
[1772693483159,0.55304569,2130.7,2129.2,0.00378933]
[1772693483356,0.55304569,2130.7,2129.4,0.569306]
[1772693483560,0.55304569,2130.7,2129.5,1.30446]
[1772693483761,0.55304569,2130.7,2129.5,0.569306]
[1772693484162,0.55304569,2130.7,2129.6,1.30446]
[1772693484360,0.55304569,2130.6,2129.4,0.569306]
[1772693484560,0.55304569,2130.6,2129.6,0.569306]
[1772693485164,0.55304569,2130.6,2129.8,0.569306]
[1772693487967,0.55304569,2130.6,2129.6,0.57166885]
[1772693488168,0.55304569,2130.6,2129.7,8.71721355]
[1772693488370,0.54032778,2130.5,2129.6,0.57166885]
[1772693488570,0.54032778,2130.5,2129.7,8.71721355]
[1772693488771,0.54032778,2130.5,2129.7,0.57166885]
[1772693492278,0.54032778,2130.4,2129.7,0.57166885]
[1772693492775,0.00434781,2130.8,2130.1,0.57166885]
[1772693493077,0.00434781,2130.8,2130.0,0.2347]
[1772693493078,0.54032778,2131.9,2130.3,0.57166885]
[1772693493470,0.54032778,2131.9,2130.0,4.12172098]
[1772693493471,0.54032778,2131.9,2130.5,0.57166885]
[1772693493671,0.54032778,2131.6,2130.5,0.57166885]
[1772693494076,0.54447157,2131.6,2130.5,0.57166885]
[1772693494379,0.54032778,2131.4,2130.5,0.57166885]
[1772693494580,0.54032778,2131.4,2130.3,0.57166885]
[1772693494780,0.54032778,2131.2,2130.3,0.57166885]
[1772693495274,0.54032778,2131.1,2130.1,0.57166885]
[1772693495478,0.54032778,2131.1,2129.9,0.57166885]
[1772693495680,0.54032778,2130.9,2129.7,4.47071954]
[1772693495983,0.54032778,2130.9,2129.8,8.71755849]
[1772693496180,0.54032778,2130.7,2129.9,8.14588964]
[1772693496381,0.54032778,2130.7,2129.8,0.57166885]
[1772693496581,0.54032778,2130.7,2129.9,7.41070105]
[1772693496779,0.54032778,2130.5,2129.8,0.57166885]
[1772693496980,0.54032778,2130.5,2129.9,7.41070105]
[1772693497180,0.54032778,2130.4,2129.8,0.57166885]
[1772693497478,0.54032778,2130.4,2129.9,7.41070105]
[1772693497680,0.54032778,2130.4,2129.8,0.57166885]
[1772693497880,0.54032778,2130.4,2129.9,7.41070105]
[1772693498079,0.54032778,2130.4,2129.9,0.57166885]
[1772693498678,0.54032778,2131.5,2129.9,0.57166885]
[1772693498877,0.54032778,2130.9,2129.9,0.57166885]
[1772693499579,0.54032778,2130.9,2130.0,7.41070105]
[1772693499774,0.54032778,2130.9,2130.1,0.57166885]
[1772693500381,0.54032778,2131.1,2130.1,0.57166885]
[1772693500581,0.00414379,2131.6,2130.3,0.57166885]
[1772693500781,0.54032778,2131.5,2130.5,0.57166885]
[1772693502185,0.54032778,2131.3,2130.3,0.57166885]
[1772693502884,0.54032778,2131.3,2130.1,0.57166885]
[1772693503084,0.54032778,2131.3,2130.3,0.57166885]
[1772693503476,0.00414379,2131.6,2130.3,0.57166885]
[1772693503477,0.54032778,2131.1,2130.3,0.57166885]
[1772693503877,0.54032778,2131.0,2130.3,0.57166885]
[1772693504778,0.54032778,2131.5,2130.3,0.57166885]
[1772693504978,0.54032778,2131.4,2130.3,0.57166885]
[1772693505485,0.54032778,2131.2,2130.3,0.57166885]
[1772693505880,0.54032778,2131.0,2130.3,0.57166885]
[1772693506281,0.54032778,2131.2,2130.3,0.57166885]
[1772693508286,0.54032778,2131.1,2130.3,0.57166885]
[1772693508790,2.9425874,2131.0,2130.3,0.57166885]
[1772693508990,0.5953874,2131.0,2130.3,0.57166885]
[1772693509292,0.5953874,2131.0,2130.6,3.89905069]
[1772693509481,0.00414379,2131.6,2130.8,0.56332247]
[1772693509687,0.00414379,2131.6,2130.9,8.14655307]
[1772693509688,0.59953119,2131.6,2130.9,8.14655307]
[1772693509889,2.3472,2131.4,2131.0,7.4118519]
[1772693510184,0.5953874,2131.3,2130.8,0.56666926]
[1772693510386,0.47366224,2131.2,2130.8,0.00334679]
[1772693510888,2.3472,2130.9,2130.8,0.00334679]
[1772693511088,2.3472,2130.9,2130.8,0.56332247]
[1772693511289,0.47366224,2131.2,2130.6,0.56332247]
[1772693511493,0.5953874,2131.0,2130.4,4.46237316]
[1772693511692,0.5953874,2131.0,2130.5,0.73470117]
[1772693511886,2.9425874,2131.0,2130.4,4.46237316]
[1772693512086,0.5953874,2130.9,2130.5,1.29802364]
[1772693512285,0.5953874,2131.5,2130.5,0.56332247]
[1772693512490,0.5953874,2131.5,2130.7,0.56332247]
[1772693512994,0.00414379,2131.6,2130.7,0.56332247]
[1772693512995,0.5953874,2131.3,2130.7,0.56332247]
[1772693513389,0.5953874,2131.5,2130.7,0.56332247]
[1772693514096,2.9425874,2131.4,2130.7,0.56332247]
[1772693514296,0.5953874,2131.4,2130.7,0.56332247]
[1772693514497,2.9425874,2131.4,2130.7,0.56332247]
[1772693514797,0.5953874,2131.3,2130.5,0.56332247]
[1772693515002,0.5953874,2131.2,2130.5,0.56332247]
[1772693515293,0.5953874,2131.5,2130.5,0.56332247]
[1772693515594,0.5953874,2131.4,2130.7,0.56332247]
[1772693516094,2.9425874,2131.3,2130.7,0.56332247]
[1772693516295,0.5953874,2131.3,2130.7,0.56332247]
[1772693516495,0.5953874,2131.1,2130.7,0.56332247]
[1772693516903,0.5953874,2131.5,2130.7,0.56332247]
[1772693517090,0.5953874,2131.2,2130.7,0.56332247]
[1772693517292,0.5953874,2131.5,2130.7,0.56332247]
[1772693517493,0.5953874,2131.3,2130.4,4.46629942]
[1772693517795,0.5953874,2131.3,2130.4,0.56724873]
[1772693518098,2.3472,2131.1,2130.4,0.56724873]
[1772693518398,0.5953874,2131.2,2130.4,0.56724873]
[1772693518598,2.9425874,2131.1,2130.4,0.56724873]
[1772693518801,0.5953874,2131.1,2130.4,0.56724873]
[1772693519000,2.3472,2131.0,2130.4,0.56724873]
[1772693519496,0.5953874,2131.0,2130.4,0.00392626]
[1772693519803,0.5953874,2130.7,2130.4,0.00392626]
[1772693520597,2.3472,2130.5,2130.4,0.00392626]
[1772693520796,0.5953874,2131.5,2130.4,0.56724873]
[1772693520996,0.5953874,2131.5,2130.6,0.56332247]
[1772693521301,0.5953874,2131.5,2130.4,0.56724873]
[1772693521894,0.5953874,2131.5,2130.4,0.00392626]
[1772693522099,0.5953874,2131.5,2130.5,7.40578779]
[1772693522289,0.5953874,2131.5,2130.6,7.40578779]
[1772693522490,0.5953874,2131.5,2130.4,0.00392626]
[1772693522696,0.5953874,2131.5,2130.4,0.56724873]
[1772693522895,0.5953874,2131.5,2130.1,3.89905069]
[1772693523197,0.4311891,2131.4,2130.2,0.73470117]
[1772693523400,0.4311891,2131.4,2130.0,0.56332247]
[1772693523594,2.61559689,2131.1,2129.8,4.46237316]
[1772693523799,2.61559689,2131.1,2129.7,4.49555272]
[1772693524094,2.61559689,2131.1,2129.8,0.59650203]
[1772693524694,2.61559689,2131.1,2129.7,3.90426031]
[1772693525297,2.61559689,2131.1,2129.7,4.50156378]
[1772693525499,2.61559689,2131.1,2129.7,0.00520962]
[1772693525702,2.61559689,2130.8,2129.5,3.80854199]
[1772693525897,2.61559689,2130.8,2129.2,0.59730347]
[1772693526199,2.61559689,2131.2,2129.4,0.59730347]
[1772693526698,2.61559689,2131.2,2129.4,0.60127946]
[1772693527495,2.61559689,2130.8,2129.4,0.60127946]
[1772693527799,2.61559689,2130.8,2129.4,0.00397599]
[1772693530801,2.61559689,2130.8,2129.4,0.60308199]
[1772693531201,2.61559689,2131.2,2129.4,0.60308199]
[1772693532103,2.61559689,2130.8,2129.4,0.60308199]
[1772693533105,2.61559689,2131.2,2129.4,0.60308199]
[1772693534398,2.61559689,2131.2,2129.6,0.59872825]
[1772693534606,2.61559689,2131.2,2129.7,7.40578779]
[1772693534806,2.61559689,2131.2,2129.6,0.59872825]
[1772693535007,2.61559689,2131.2,2129.7,8.00469865]
[1772693535208,2.61559689,2131.2,2129.7,0.59891086]
[1772693536410,2.61559689,2130.9,2129.5,0.59891086]
[1772693536611,0.00376805,2130.8,2129.7,0.59471696]
[1772693536808,0.00376805,2130.8,2129.9,5.87135532]
[1772693537008,0.00376805,2130.8,2130.0,8.14048896]
[1772693537208,0.00376805,2130.8,2130.1,8.14048896]
[1772693537510,0.00376805,2130.8,2129.8,6.46607228]
[1772693537511,0.00376805,2130.8,2130.2,8.13672091]
[1772693537710,0.00376805,2130.8,2129.8,6.46607228]
[1772693537912,0.00376805,2130.8,2129.9,0.70610577]
[1772693538112,0.00376805,2130.8,2130.0,0.70610577]
[1772693538312,0.00376805,2130.8,2130.1,0.70610577]
[1772693538611,0.00376805,2130.8,2130.2,0.70610577]
[1772693538812,0.00376805,2130.8,2129.6,6.46795631]
[1772693539008,0.00376805,2130.8,2129.7,0.70620892]
[1772693539214,0.00376805,2130.8,2129.8,0.70620892]
[1772693539412,0.00376805,2130.8,2129.9,0.70620892]
[1772693539616,0.00376805,2130.8,2130.0,0.70620892]
[1772693539914,0.00376805,2130.8,2130.1,0.70620892]
[1772693540109,0.00376805,2130.8,2129.7,0.59961587]
[1772693540315,0.00376805,2130.8,2129.8,0.69129068]
[1772693540510,0.00376805,2130.8,2129.9,0.69129068]
[1772693540714,0.00376805,2130.8,2130.0,0.69129068]
[1772693540918,0.00376805,2130.8,2130.1,0.69129068]
[1772693541114,0.00376805,2130.8,2130.2,0.69129068]
[1772693541313,0.00376805,2130.8,2129.9,0.60147104]
[1772693541510,0.00376805,2130.8,2130.0,0.69125034]
[1772693541711,0.00376805,2130.8,2130.1,0.69125034]
[1772693542013,0.00376805,2130.8,2130.2,0.69125034]
[1772693542212,0.00376805,2130.8,2129.9,0.60147104]
[1772693542414,0.00376805,2130.8,2130.0,0.69125665]
[1772693542615,0.00376805,2130.8,2130.1,0.69125665]
[1772693542916,0.00376805,2130.8,2129.7,0.60147104]
[1772693543115,0.00376805,2130.8,2129.8,1.29306213]
[1772693543414,0.00376805,2130.8,2129.9,1.29306213]
[1772693543614,0.00376805,2130.8,2130.0,1.29306213]
[1772693543816,0.00376805,2130.8,2130.1,0.69140912]
[1772693544015,0.00376805,2130.8,2130.2,0.69140912]
[1772693544216,0.00376805,2130.8,2130.0,0.60165301]
[1772693544418,0.00376805,2130.8,2130.1,0.69138563]
[1772693544613,6.338,2130.8,2130.2,0.69138563]
[1772693544809,6.338,2130.8,2129.8,0.60145463]
[1772693545015,6.338,2130.8,2129.4,0.00397599]
[1772693545016,6.338,2130.8,2129.9,0.69142336]